fUST/lending_fUST_20250505
["ID","MTS","AMOUNT","RATE_DAILY","PERIOD"]
[359897213,1746406252084,-1883.66,0.0003726,14]
[359897215,1746406252094,-400.0,0.0003726,14]
[359897217,1746406252103,-400.0,0.0003726,14]
[359897219,1746406252113,-553.05,0.0003726,14]
[359897221,1746406252122,-400.0,0.0003726,14]
[359897223,1746406252131,-400.0,0.0003726,14]
[359897236,1746406252256,-400.0,0.0003726,14]
[359897239,1746406252269,-400.0,0.0003726,14]
[359897241,1746406252279,-400.0,0.0003726,14]
[359897243,1746406252289,-768.3,0.0003726,14]
[359897245,1746406252299,-400.0,0.0003726,14]
[359897247,1746406252308,-400.0,0.0003726,14]
[359897249,1746406252318,-473.99,0.0003726,14]
[359897251,1746406252327,-560.86,0.0003726,14]
[359897253,1746406252337,-932.24,0.0003726,14]
[359897255,1746406252347,-400.0,0.0003726,14]
[359897257,1746406252356,-1028.46,0.0003726,14]
[359897259,1746406252366,-400.0,0.0003726,14]
[359897261,1746406252375,-480.69,0.0003726,14]
[359897263,1746406252384,-400.0,0.0003726,14]
[359897265,1746406252394,-400.0,0.0003726,14]
[359897267,1746406252403,-1176.96,0.0003726,14]
[359897269,1746406252415,-400.0,0.0003726,14]
[359897271,1746406252425,-400.0,0.0003726,14]
[359897273,1746406252434,-401.04,0.0003726,14]
[359897275,1746406252444,-6555.32,0.0003726,14]
[359897277,1746406252454,-400.0,0.0003726,14]
[359897279,1746406252464,-1924.84,0.0003726,14]
[359897281,1746406252474,-400.0,0.0003726,14]
[359897283,1746406252483,-759.62,0.0003726,14]
[359897285,1746406252495,-400.0,0.0003726,14]
[359897287,1746406252505,-400.0,0.0003726,14]
[359897289,1746406252515,-468.68,0.0003726,14]
[359897291,1746406252524,-664.1,0.0003726,14]
[359897293,1746406252533,-400.0,0.0003726,14]
[359897295,1746406252543,-1959.41,0.0003726,14]
[359897297,1746406252552,-400.0,0.0003726,14]
[359897299,1746406252561,-561.24,0.0003726,14]
[359897301,1746406252571,-500.0,0.0003726,60]
[359897303,1746406252580,-234.02238527,0.00037279,36]
[359897305,1746406252590,-805.693101,0.00037434,2]
[359897307,1746406252599,-234.02238527,0.00037452,36]
[359897309,1746406252609,-16016.2561672,0.00037514,3]
[359897311,1746406252619,-600.0,0.00037516,5]
[359897313,1746406252628,-16016.2561672,0.00037524,3]
[359897315,1746406252637,-400.0,0.00037534,14]
[359897317,1746406252647,-400.0,0.00037534,14]
[359897319,1746406252656,-545.7,0.00037534,14]
[359897321,1746406252665,-400.0,0.00037534,14]
[359897323,1746406252674,-529.56715401,0.00037534,14]
[359897325,1746406252684,-400.0,0.00037534,14]
[359897327,1746406252693,-400.0,0.00037534,14]
[359897329,1746406252702,-400.0,0.00037534,14]
[359897331,1746406252711,-400.0,0.00037534,14]
[359897333,1746406252721,-400.0,0.00037534,14]
[359897335,1746406252730,-400.0,0.00037534,14]
[359897337,1746406252739,-400.0,0.00037534,14]
[359897339,1746406252750,-400.0,0.00037534,14]
[359897341,1746406252760,-400.0,0.00037534,14]
[359897343,1746406252770,-400.0,0.00037534,14]
[359897345,1746406252779,-400.0,0.00037534,14]
[359897347,1746406252788,-400.0,0.00037534,14]
[359897349,1746406252798,-475.74,0.00037534,14]
[359897351,1746406252807,-400.0,0.00037534,14]
[359897353,1746406252816,-400.0,0.00037534,14]
[359897355,1746406252825,-400.0,0.00037534,14]
[359897357,1746406252835,-400.0,0.00037534,14]
[359897359,1746406252844,-179.31194484,0.00037534,14]
[359897361,1746406252853,-400.0,0.00037534,14]
[359897363,1746406252863,-400.0,0.00037534,14]
[359897365,1746406252872,-236.15929592,0.00037534,14]
[359897367,1746406252881,-400.0,0.00037534,14]
[359897369,1746406252891,-400.0,0.00037534,14]
[359897371,1746406252900,-400.0,0.00037534,14]
[359897373,1746406252909,-400.0,0.00037534,14]
[359897375,1746406252919,-400.0,0.00037534,14]
[359897377,1746406252928,-534.05,0.00037534,14]
[359897379,1746406252938,-687.53,0.00037534,14]
[359897381,1746406252947,-400.0,0.00037534,14]
[359897383,1746406252958,-203.27915131,0.00037534,14]
[359897385,1746406252968,-446.38,0.00037534,14]
[359897387,1746406252977,-400.0,0.00037534,14]
[359897390,1746406252988,-400.0,0.00037534,14]
[359897392,1746406253001,-400.0,0.00037534,14]
[359897394,1746406253010,-428.27,0.00037534,14]
[359897396,1746406253019,-400.0,0.00037534,14]
[359897398,1746406253028,-400.0,0.00037534,14]
[359897399,1746406253037,-1883.66,0.00037534,14]
[359897401,1746406253047,-400.0,0.00037534,14]
[359897403,1746406253056,-400.0,0.00037534,14]
[359897405,1746406253065,-553.05,0.00037534,14]
[359897407,1746406253074,-400.0,0.00037534,14]
[359897409,1746406253084,-400.0,0.00037534,14]
[359897411,1746406253094,-400.0,0.00037534,14]
[359897414,1746406253104,-400.0,0.00037534,14]
[359897415,1746406253113,-400.0,0.00037534,14]
[359897418,1746406253124,-768.3,0.00037534,14]
[359897420,1746406253133,-400.0,0.00037534,14]
[359897421,1746406253142,-400.0,0.00037534,14]
[359897424,1746406253153,-560.86,0.00037534,14]
[359897425,1746406253163,-932.24,0.00037534,14]
[359897427,1746406253173,-400.0,0.00037534,14]
[359897430,1746406253183,-1028.46,0.00037534,14]
[359897432,1746406253192,-266.72,0.00037534,14]
[359897434,1746406253202,-480.69,0.00037534,14]
[359897436,1746406253212,-400.0,0.00037534,14]
[359897438,1746406253221,-400.0,0.00037534,14]
[359897440,1746406253231,-1176.96,0.00037534,14]
[359897442,1746406253241,-400.0,0.00037534,14]
[359897444,1746406253251,-400.0,0.00037534,14]
[359897446,1746406253262,-401.04,0.00037534,14]
[359897448,1746406253271,-6555.32,0.00037534,14]
[359897450,1746406253282,-314.62,0.00037534,14]
[359897452,1746406253292,-1924.84,0.00037534,14]
[359897454,1746406253301,-400.0,0.00037534,14]
[359897456,1746406253311,-759.62,0.00037534,14]
[359897458,1746406253320,-400.0,0.00037534,14]
[359897460,1746406253329,-400.0,0.00037534,14]
[359897462,1746406253339,-468.68,0.00037534,14]
[359897464,1746406253348,-664.1,0.00037534,14]
[359897466,1746406253359,-400.0,0.00037534,14]
[359897468,1746406253368,-1959.41,0.00037534,14]
[359897470,1746406253378,-400.0,0.00037534,14]
[359897472,1746406253387,-561.24,0.00037534,14]
[359897474,1746406253397,-247.226323,0.00037576,2]
[359897476,1746406253408,-4330.68,0.000376,30]
[359897478,1746406253419,-234.02238527,0.00037624,37]
[359897480,1746406253429,-151.0,0.00037698,2]
[359897482,1746406253439,-545.0,0.00037721,2]
[359897485,1746406253450,-707.0,0.00037721,2]
[359897487,1746406253459,-2243.0,0.00037721,2]
[359897489,1746406253469,-403.0,0.00037721,2]
[359897491,1746406253478,-234.02238527,0.00037797,37]
[359897493,1746406253489,-16016.2561672,0.00037798,3]
[359897495,1746406253499,-400.0,0.00037808,14]
[359897497,1746406253508,-400.0,0.00037808,14]
[359897499,1746406253518,-545.7,0.00037808,14]
[359897501,1746406253527,-265.26738007,0.00037808,14]
[359897503,1746406253537,-400.0,0.00037808,14]
[359897505,1746406253547,-400.0,0.00037808,14]
[359897507,1746406253556,-400.0,0.00037808,14]
[359897509,1746406253566,-400.0,0.00037808,14]
[359897511,1746406253575,-400.0,0.00037808,14]
[359897513,1746406253586,-400.0,0.00037808,14]
[359897515,1746406253595,-400.0,0.00037808,14]
[359897517,1746406253605,-400.0,0.00037808,14]
[359897519,1746406253614,-400.0,0.00037808,14]
[359897521,1746406253624,-400.0,0.00037808,14]
[359897523,1746406253633,-475.74,0.00037808,14]
[359897525,1746406253643,-400.0,0.00037808,14]
[359897527,1746406253652,-400.0,0.00037808,14]
[359897529,1746406253661,-537.13328888,0.00037808,14]
[359897531,1746406253671,-400.0,0.00037808,14]
[359897533,1746406253680,-400.0,0.00037808,14]
[359897535,1746406253690,-189.17943938,0.00037808,14]
[359897537,1746406253699,-400.0,0.00037808,14]
[359897539,1746406253708,-239.13918326,0.00037808,14]
[359897542,1746406253718,-400.0,0.00037808,14]
[359897543,1746406253727,-400.0,0.00037808,14]
[359897546,1746406253736,-534.05,0.00037808,14]
[359897548,1746406253746,-687.53,0.00037808,14]
[359897550,1746406253755,-400.0,0.00037808,14]
[359897552,1746406253765,-446.38,0.00037808,14]
[359897553,1746406253774,-400.0,0.00037808,14]
[359897556,1746406253785,-209.46179511,0.00037808,14]
[359897558,1746406253795,-400.0,0.00037808,14]
[359897560,1746406253804,-428.27,0.00037808,14]
[359897562,1746406253813,-400.0,0.00037808,14]
[359897564,1746406253822,-400.0,0.00037808,14]
[359897566,1746406253832,-1883.66,0.00037808,14]
[359897568,1746406253841,-400.0,0.00037808,14]
[359897569,1746406253850,-400.0,0.00037808,14]
[359897570,1746406253860,-553.05,0.00037808,14]
[359897571,1746406253870,-400.0,0.00037808,14]
[359897572,1746406253879,-400.0,0.00037808,14]
[359897573,1746406253889,-400.0,0.00037808,14]
[359897574,1746406253899,-434.08406202,0.00037808,14]
[359897575,1746406253909,-400.0,0.00037808,14]
[359897576,1746406253918,-768.3,0.00037808,14]
[359897577,1746406253928,-400.0,0.00037808,14]
[359897578,1746406253939,-400.0,0.00037808,14]
[359897579,1746406253949,-560.86,0.00037808,14]
[359897581,1746406253959,-932.24,0.00037808,14]
[359897583,1746406253969,-400.0,0.00037808,14]
[359897585,1746406253979,-1028.46,0.00037808,14]
[359897587,1746406253988,-480.69,0.00037808,14]
[359897589,1746406253999,-400.0,0.00037808,14]
[359897591,1746406254009,-400.0,0.00037808,14]
[359897593,1746406254018,-1176.96,0.00037808,14]
[359897595,1746406254028,-400.0,0.00037808,14]
[359897597,1746406254037,-400.0,0.00037808,14]
[359897599,1746406254048,-401.04,0.00037808,14]
[359897601,1746406254060,-6555.32,0.00037808,14]
[359897603,1746406254069,-1924.84,0.00037808,14]
[359897605,1746406254079,-400.0,0.00037808,14]
[359897607,1746406254089,-759.62,0.00037808,14]
[359897609,1746406254099,-400.0,0.00037808,14]
[359897611,1746406254109,-400.0,0.00037808,14]
[359897614,1746406254119,-468.68,0.00037808,14]
[359897616,1746406254129,-664.1,0.00037808,14]
[359897618,1746406254139,-400.0,0.00037808,14]
[359897619,1746406254148,-1959.41,0.00037808,14]
[359897622,1746406254158,-400.0,0.00037808,14]
[359897623,1746406254168,-561.24,0.00037808,14]
[359897625,1746406254178,-1000.0,0.00037854,2]
[359897627,1746406254188,-234.02238527,0.00037969,37]
[359897630,1746406254197,-982.8552585,0.00038,4]
[359897632,1746406254208,-16016.2561672,0.00038072,3]
[359897634,1746406254217,-500.0,0.00038073,5]
[359897636,1746406254227,-251.60289308,0.00038073,5]
[359897638,1746406254236,-400.0,0.00038082,14]
[359897639,1746406254246,-400.0,0.00038082,14]
[359897641,1746406254256,-545.7,0.00038082,14]
[359897643,1746406254266,-400.0,0.00038082,14]
[359897645,1746406254276,-497.82809439,0.00038082,14]
[359897648,1746406254286,-400.0,0.00038082,14]
[359897650,1746406254295,-444.92038812,0.00038082,14]
[359897651,1746406254305,-400.0,0.00038082,14]
[359897653,1746406254314,-400.0,0.00038082,14]
[359897655,1746406254324,-400.0,0.00038082,14]
[359897657,1746406254333,-400.0,0.00038082,14]
[359897659,1746406254343,-400.0,0.00038082,14]
[359897661,1746406254353,-475.74,0.00038082,14]
[359897663,1746406254363,-400.0,0.00038082,14]
[359897665,1746406254373,-215.85847348,0.00038082,14]
[359897667,1746406254382,-400.0,0.00038082,14]
[359897669,1746406254392,-400.0,0.00038082,14]
[359897671,1746406254401,-493.83,0.00038082,14]
[359897673,1746406254413,-400.0,0.00038082,14]
[359897675,1746406254422,-400.0,0.00038082,14]
[359897677,1746406254431,-534.05,0.00038082,14]
[359897679,1746406254441,-687.53,0.00038082,14]
[359897681,1746406254451,-400.0,0.00038082,14]
[359897683,1746406254460,-446.38,0.00038082,14]
[359897685,1746406254470,-400.0,0.00038082,14]
[359897687,1746406254480,-400.0,0.00038082,14]
[359897689,1746406254490,-428.27,0.00038082,14]
[359897691,1746406254501,-400.0,0.00038082,14]
[359897693,1746406254510,-261.38,0.00038082,14]
[359897695,1746406254519,-1883.66,0.00038082,14]
[359897697,1746406254529,-400.0,0.00038082,14]
[359897699,1746406254538,-400.0,0.00038082,14]
[359897701,1746406254548,-553.05,0.00038082,14]
[359897703,1746406254558,-400.0,0.00038082,14]
[359897705,1746406254567,-400.0,0.00038082,14]
[359897707,1746406254578,-400.0,0.00038082,14]
[359897709,1746406254587,-400.0,0.00038082,14]
[359897711,1746406254597,-768.3,0.00038082,14]
[359897713,1746406254606,-264.54312018,0.00038082,14]
[359897715,1746406254616,-400.0,0.00038082,14]
[359897717,1746406254626,-560.86,0.00038082,14]
[359897719,1746406254635,-932.24,0.00038082,14]
[359897721,1746406254644,-400.0,0.00038082,14]
[359897723,1746406254653,-1028.46,0.00038082,14]
[359897725,1746406254663,-480.69,0.00038082,14]
[359897727,1746406254672,-400.0,0.00038082,14]
[359897729,1746406254681,-400.0,0.00038082,14]
[359897731,1746406254690,-1176.96,0.00038082,14]
[359897733,1746406254699,-400.0,0.00038082,14]
[359897735,1746406254708,-400.0,0.00038082,14]
[359897737,1746406254718,-401.04,0.00038082,14]
[359897739,1746406254727,-6555.32,0.00038082,14]
[359897741,1746406254737,-1924.84,0.00038082,14]
[359897743,1746406254747,-400.0,0.00038082,14]
[359897745,1746406254756,-759.62,0.00038082,14]
[359897747,1746406254766,-400.0,0.00038082,14]
[359897749,1746406254777,-400.0,0.00038082,14]
[359897751,1746406254786,-468.68,0.00038082,14]
[359897753,1746406254795,-664.1,0.00038082,14]
[359897755,1746406254805,-400.0,0.00038082,14]
[359897757,1746406254815,-1959.41,0.00038082,14]
[359897759,1746406254825,-400.0,0.00038082,14]
[359897761,1746406254834,-561.24,0.00038082,14]
[359897763,1746406254844,-15498.25,0.000381,30]
[359897765,1746406254853,-234.02238527,0.00038141,38]
[359897767,1746406254862,-247.226323,0.00038262,2]
[359897769,1746406254872,-148383.203566,0.000383,2]
[359897771,1746406254880,-234.02238527,0.00038314,38]
[359897773,1746406254890,-16016.2561672,0.00038346,3]
[359897775,1746406254900,-400.0,0.00038356,14]
[359897777,1746406254909,-400.0,0.00038356,14]
[359897779,1746406254919,-545.7,0.00038356,14]
[359897781,1746406254928,-400.0,0.00038356,14]
[359897783,1746406254938,-400.0,0.00038356,14]
[359897785,1746406254947,-400.0,0.00038356,14]
[359897787,1746406254957,-400.0,0.00038356,14]
[359897789,1746406254965,-400.0,0.00038356,14]
[359897791,1746406254975,-400.0,0.00038356,14]
[359897793,1746406254984,-400.0,0.00038356,14]
[359897795,1746406254994,-475.74,0.00038356,14]
[359897797,1746406255003,-400.0,0.00038356,14]
[359897799,1746406255013,-400.0,0.00038356,14]
[359897801,1746406255022,-173.90833914,0.00038356,14]
[359897803,1746406255031,-400.0,0.00038356,14]
[359897805,1746406255041,-400.0,0.00038356,14]
[359897807,1746406255050,-534.05,0.00038356,14]
[359897809,1746406255060,-687.53,0.00038356,14]
[359897811,1746406255070,-400.0,0.00038356,14]
[359897813,1746406255079,-446.38,0.00038356,14]
[359897815,1746406255090,-400.0,0.00038356,14]
[359897817,1746406255099,-400.0,0.00038356,14]
[359897819,1746406255109,-428.27,0.00038356,14]
[359897821,1746406255118,-400.0,0.00038356,14]
[359897823,1746406255128,-1883.66,0.00038356,14]
[359897825,1746406255137,-400.0,0.00038356,14]
[359897827,1746406255146,-400.0,0.00038356,14]
[359897829,1746406255156,-553.05,0.00038356,14]
[359897831,1746406255166,-400.0,0.00038356,14]
[359897834,1746406255176,-400.0,0.00038356,14]
[359897836,1746406255185,-196.15999999,0.00038356,14]
[359897838,1746406255195,-400.0,0.00038356,14]
[359897840,1746406255204,-768.3,0.00038356,14]
[359897842,1746406255214,-400.0,0.00038356,14]
[359897843,1746406255223,-560.86,0.00038356,14]
[359897845,1746406255233,-932.24,0.00038356,14]
[359897847,1746406255243,-400.0,0.00038356,14]
[359897850,1746406255253,-1028.46,0.00038356,14]
[359897852,1746406255263,-480.69,0.00038356,14]
[359897854,1746406255273,-400.0,0.00038356,14]
[359897856,1746406255283,-400.0,0.00038356,14]
[359897858,1746406255292,-1176.96,0.00038356,14]
[359897860,1746406255302,-408.99938263,0.00038356,14]
[359897862,1746406255311,-400.0,0.00038356,14]
[359897864,1746406255321,-401.04,0.00038356,14]
[359897866,1746406255330,-6555.32,0.00038356,14]
[359897879,1746406255340,-1924.84,0.00038356,14]
[359897882,1746406255463,-400.0,0.00038356,14]
[359897884,1746406255472,-759.62,0.00038356,14]
[359897886,1746406255482,-400.0,0.00038356,14]
[359897888,1746406255492,-524.28169239,0.00038356,14]
[359897890,1746406255503,-468.68,0.00038356,14]
[359897892,1746406255512,-664.1,0.00038356,14]
[359897894,1746406255521,-400.0,0.00038356,14]
[359897896,1746406255531,-1959.41,0.00038356,14]
[359897898,1746406255540,-400.0,0.00038356,14]
[359897900,1746406255550,-561.24,0.00038356,14]
[359897902,1746406255559,-500.0,0.00038356,60]
[359897904,1746406255569,-200.0,0.00038356,5]
[359897906,1746406255579,-151.0,0.000384,17]
[359897908,1746406255588,-234.02238527,0.00038486,38]
[359897910,1746406255597,-1440.06493485,0.00038516,2]
[359897912,1746406255606,-400.0,0.0003863,14]
[359897914,1746406255616,-400.0,0.0003863,14]
[359897916,1746406255625,-545.7,0.0003863,14]
[359897918,1746406255634,-400.0,0.0003863,14]
[359897920,1746406255643,-400.0,0.0003863,14]
[359897922,1746406255652,-400.0,0.0003863,14]
[359897924,1746406255661,-400.0,0.0003863,14]
[359897926,1746406255671,-400.0,0.0003863,14]
[359897928,1746406255680,-475.74,0.0003863,14]
[359897930,1746406255689,-400.0,0.0003863,14]
[359897932,1746406255698,-400.0,0.0003863,14]
[359897934,1746406255708,-400.0,0.0003863,14]
[359897936,1746406255717,-155.72906214,0.0003863,14]
[359897938,1746406255727,-534.05,0.0003863,14]
[359897940,1746406255736,-687.53,0.0003863,14]
[359897942,1746406255747,-400.0,0.0003863,14]
[359897944,1746406255756,-446.38,0.0003863,14]
[359897946,1746406255765,-400.0,0.0003863,14]
[359897947,1746406255776,-400.0,0.0003863,14]
[359897949,1746406255787,-428.27,0.0003863,14]
[359897951,1746406255797,-400.0,0.0003863,14]
[359897953,1746406255807,-1883.66,0.0003863,14]
[359897955,1746406255816,-400.0,0.0003863,14]
[359897957,1746406255827,-400.0,0.0003863,14]
[359897959,1746406255837,-553.05,0.0003863,14]
[359897962,1746406255847,-400.0,0.0003863,14]
[359897964,1746406255856,-400.0,0.0003863,14]
[359897966,1746406255866,-400.0,0.0003863,14]
[359897968,1746406255875,-768.3,0.0003863,14]
[359897970,1746406255884,-400.0,0.0003863,14]
[359897971,1746406255894,-560.86,0.0003863,14]
[359897972,1746406255903,-932.24,0.0003863,14]
[359897973,1746406255912,-400.0,0.0003863,14]
[359897974,1746406255922,-1028.46,0.0003863,14]
[359897975,1746406255931,-480.69,0.0003863,14]
[359897976,1746406255941,-400.0,0.0003863,14]
[359897977,1746406255950,-267.50879931,0.0003863,14]
[359897978,1746406255959,-1176.96,0.0003863,14]
[359897979,1746406255968,-400.0,0.0003863,14]
[359897980,1746406255978,-401.04,0.0003863,14]
[359897981,1746406255987,-6555.32,0.0003863,14]
[359897983,1746406255997,-1924.84,0.0003863,14]
[359897985,1746406256007,-400.0,0.0003863,14]
[359897987,1746406256017,-759.62,0.0003863,14]
[359897989,1746406256026,-539.82,0.0003863,14]
[359897991,1746406256036,-468.68,0.0003863,14]
[359897993,1746406256045,-664.1,0.0003863,14]
[359897995,1746406256056,-400.0,0.0003863,14]
[359897997,1746406256066,-1959.41,0.0003863,14]
[359897999,1746406256075,-398.35446403,0.0003863,14]
[359898001,1746406256085,-561.24,0.0003863,14]
[359898003,1746406256095,-234.02238527,0.00038659,39]
[359898005,1746406256104,-2208.82,0.000387,7]
[359898007,1746406256113,-234.02238527,0.00038831,39]
[359898009,1746406256123,-590.42,0.000389,2]
[359898011,1746406256132,-400.0,0.00038904,14]
[359898013,1746406256142,-545.7,0.00038904,14]
[359898015,1746406256151,-400.0,0.00038904,14]
[359898017,1746406256160,-400.0,0.00038904,14]
[359898019,1746406256169,-400.0,0.00038904,14]
[359898021,1746406256178,-400.0,0.00038904,14]
[359898023,1746406256187,-400.0,0.00038904,14]
[359898025,1746406256197,-475.74,0.00038904,14]
[359898027,1746406256206,-400.0,0.00038904,14]
[359898029,1746406256215,-400.0,0.00038904,14]
[359898031,1746406256225,-400.0,0.00038904,14]
[359898033,1746406256234,-534.05,0.00038904,14]
[359898035,1746406256243,-687.53,0.00038904,14]
[359898037,1746406256253,-400.0,0.00038904,14]
[359898039,1746406256263,-446.38,0.00038904,14]
[359898041,1746406256272,-400.0,0.00038904,14]
[359898043,1746406256282,-400.0,0.00038904,14]
[359898045,1746406256292,-428.27,0.00038904,14]
[359898047,1746406256301,-400.0,0.00038904,14]
[359898049,1746406256311,-1883.66,0.00038904,14]
[359898051,1746406256320,-400.0,0.00038904,14]
[359898053,1746406256330,-400.0,0.00038904,14]
[359898055,1746406256340,-553.05,0.00038904,14]
[359898057,1746406256349,-383.99524344,0.00038904,14]
[359898059,1746406256359,-400.0,0.00038904,14]
[359898061,1746406256368,-400.0,0.00038904,14]
[359898063,1746406256377,-768.3,0.00038904,14]
[359898065,1746406256387,-400.0,0.00038904,14]
[359898067,1746406256396,-560.86,0.00038904,14]
[359898069,1746406256407,-932.24,0.00038904,14]
[359898071,1746406256419,-400.0,0.00038904,14]
[359898073,1746406256428,-1028.46,0.00038904,14]
[359898075,1746406256437,-480.69,0.00038904,14]
[359898077,1746406256446,-400.0,0.00038904,14]
[359898079,1746406256457,-1176.96,0.00038904,14]
[359898081,1746406256467,-400.0,0.00038904,14]
[359898083,1746406256478,-401.04,0.00038904,14]
[359898085,1746406256488,-6555.32,0.00038904,14]
[359898087,1746406256499,-1924.84,0.00038904,14]
[359898089,1746406256508,-400.0,0.00038904,14]
[359898091,1746406256517,-759.62,0.00038904,14]
[359898093,1746406256527,-468.68,0.00038904,14]
[359898095,1746406256536,-664.1,0.00038904,14]
[359898097,1746406256547,-400.0,0.00038904,14]
[359898099,1746406256556,-1959.41,0.00038904,14]
[359898101,1746406256565,-561.24,0.00038904,14]
[359898103,1746406256574,-525.147175,0.00038933,2]
[359898105,1746406256584,-247.226323,0.00038949,2]
[359898107,1746406256594,-1500.0,0.0003895,2]
[359898109,1746406256604,-234.02238527,0.00039003,39]
[359898111,1746406256614,-900.0,0.0003916,5]
[359898113,1746406256624,-234.02238527,0.00039176,40]
[359898115,1746406256633,-400.0,0.00039178,14]
[359898117,1746406256643,-545.7,0.00039178,14]
[359898119,1746406256652,-400.0,0.00039178,14]
[359898121,1746406256662,-400.0,0.00039178,14]
[359898123,1746406256671,-384.59422642,0.00039178,14]
[359898125,1746406256682,-400.0,0.00039178,14]
[359898127,1746406256691,-400.0,0.00039178,14]
[359898129,1746406256702,-475.74,0.00039178,14]
[359898131,1746406256712,-227.2226254,0.00039178,14]
[359898133,1746406256721,-400.0,0.00039178,14]
[359898135,1746406256731,-306.46915559,0.00039178,14]
[359898137,1746406256740,-534.05,0.00039178,14]
[359898139,1746406256749,-687.53,0.00039178,14]
[359898141,1746406256759,-400.0,0.00039178,14]
[359898143,1746406256768,-446.38,0.00039178,14]
[359898145,1746406256777,-400.0,0.00039178,14]
[359898147,1746406256786,-400.0,0.00039178,14]
[359898149,1746406256796,-428.27,0.00039178,14]
[359898150,1746406256805,-400.0,0.00039178,14]
[359898153,1746406256815,-1883.66,0.00039178,14]
[359898155,1746406256824,-400.0,0.00039178,14]
[359898156,1746406256833,-400.0,0.00039178,14]
[359898158,1746406256842,-553.05,0.00039178,14]
[359898160,1746406256852,-400.0,0.00039178,14]
[359898163,1746406256865,-400.0,0.00039178,14]
[359898165,1746406256878,-768.3,0.00039178,14]
[359898168,1746406256892,-400.0,0.00039178,14]
[359898170,1746406256904,-560.86,0.00039178,14]
[359898172,1746406256916,-932.24,0.00039178,14]
[359898175,1746406256927,-400.0,0.00039178,14]
[359898177,1746406256938,-1028.46,0.00039178,14]
[359898179,1746406256951,-480.69,0.00039178,14]
[359898181,1746406256963,-400.0,0.00039178,14]
[359898184,1746406256976,-1176.96,0.00039178,14]
[359898186,1746406256988,-400.0,0.00039178,14]
[359898189,1746406257001,-401.04,0.00039178,14]
[359898191,1746406257013,-6555.32,0.00039178,14]
[359898193,1746406257025,-1924.84,0.00039178,14]
[359898196,1746406257039,-388.12898015,0.00039178,14]
[359898198,1746406257052,-759.62,0.00039178,14]
[359898200,1746406257064,-468.68,0.00039178,14]
[359898203,1746406257077,-664.1,0.00039178,14]
[359898205,1746406257089,-400.0,0.00039178,14]
[359898207,1746406257101,-1959.41,0.00039178,14]
[359898209,1746406257112,-561.24,0.00039178,14]
[359898212,1746406257124,-2200.0,0.00039192,14]
[359898214,1746406257136,-234.02238527,0.00039348,40]
[359898216,1746406257149,-161.92637679,0.00039452,14]
[359898218,1746406257160,-545.7,0.00039452,14]
[359898221,1746406257172,-400.0,0.00039452,14]
[359898223,1746406257182,-400.0,0.00039452,14]
[359898225,1746406257192,-445.64259289,0.00039452,14]